fUSD/lending_fUSD_20241230
["ID","MTS","AMOUNT","RATE_DAILY","PERIOD"]
[347141211,1735519836166,-500.0,0.00013441,2]
[347141212,1735519836175,-42.3919822,0.00013441,2]
[347141213,1735519836190,-457.6080178,0.00013441,2]
[347141214,1735519836199,-500.0,0.00013441,2]
[347141215,1735519836208,-500.0,0.00013441,2]
[347141216,1735519836217,-350.95197558,0.00013441,2]
[347141217,1735519836229,-149.04802442,0.00013441,2]
[347141218,1735519836238,-500.0,0.00013441,2]
[347141219,1735519836247,-500.0,0.00013441,2]
[347141220,1735519836256,-92.90753055,0.00013441,2]
[347141221,1735519836267,-211.98485904,0.00013441,2]
[347141222,1735519836276,-359.56688974,0.00013441,2]
[347141223,1735519836328,1536.26,0.00025012,120]
[347141224,1735519836355,-367.08311026,0.00013441,2]
[347141225,1735519836367,-500.0,0.00013441,2]
[347141226,1735519836379,-500.0,0.00013441,2]
[347141227,1735519836388,-500.0,0.00013441,2]
[347141228,1735519836397,-500.0,0.00013441,2]
[347141229,1735519836407,-500.0,0.00013441,2]
[347141230,1735519836416,-500.0,0.00013441,2]
[347141231,1735519836426,-770.76,0.00013441,2]
[347141232,1735519836435,-500.0,0.00013441,2]
[347141233,1735519836444,-500.0,0.00013441,2]
[347141234,1735519836454,-500.0,0.00013441,2]
[347141235,1735519836464,-500.0,0.00013441,2]
[347141236,1735519836472,-500.0,0.00013441,2]
[347141237,1735519836481,-500.0,0.00013441,2]
[347141238,1735519836493,-509.28,0.00013441,2]
[347141239,1735519836502,-500.0,0.00013441,2]
[347141240,1735519836512,-500.0,0.00013441,2]
[347141241,1735519836521,-629.54,0.00013441,2]
[347141242,1735519836530,-500.0,0.00013441,2]
[347141243,1735519836539,-500.0,0.00013441,2]
[347141244,1735519836549,-668.05,0.00013441,2]
[347141245,1735519836558,-500.0,0.00013441,2]
[347141246,1735519836567,-129.15974196,0.00013441,2]
[347141247,1735519836600,-571.51025804,0.00013441,2]
[347141248,1735519836609,-500.0,0.00013441,2]
[347141249,1735519836619,-500.0,0.00013441,2]
[347141250,1735519836628,-500.0,0.00013441,2]
[347141251,1735519836637,-500.0,0.00013441,2]
[347141252,1735519836647,-500.0,0.00013441,2]
[347141253,1735519836657,-500.0,0.00013441,2]
[347141254,1735519836666,-500.0,0.00013441,2]
[347141255,1735519836675,-500.0,0.00013441,2]
[347141256,1735519836684,-538.54,0.00013441,2]
[347141257,1735519836694,-586.4,0.00013441,2]
[347141258,1735519836703,-500.0,0.00013441,2]
[347141259,1735519836712,-500.0,0.00013441,2]
[347141260,1735519836721,-164.74,0.00013441,2]
[347141261,1735519836730,-683.48,0.00013441,2]
[347141262,1735519836739,-500.0,0.00013441,2]
[347141263,1735519836748,-500.0,0.00013441,2]
[347141264,1735519836758,-528.78,0.00013441,2]
[347141265,1735519836767,-500.0,0.00013441,2]
[347141266,1735519836776,-288.73004317,0.00013441,2]
[347141267,1735519836787,-211.26995683,0.00013441,2]
[347141268,1735519836797,-500.0,0.00013441,2]
[347141269,1735519836806,-703.12,0.00013441,2]
[347141270,1735519836815,-500.0,0.00013441,2]
[347141271,1735519836824,-500.0,0.00013441,2]
[347141272,1735519836834,-500.0,0.00013441,2]
[347141273,1735519836843,-500.0,0.00013441,2]
[347141274,1735519836852,-500.0,0.00013441,2]
[347141275,1735519836862,-647.58,0.00013441,2]
[347141276,1735519836871,-541.55,0.00013441,2]
[347141277,1735519836881,-714.96,0.00013441,2]
[347141278,1735519836891,-574.19,0.00013441,2]
[347141279,1735519836901,-574.68,0.00013441,2]
[347141280,1735519836910,-717.6,0.00013441,2]
[347141281,1735519836919,-500.0,0.00013441,2]
[347141282,1735519836928,-116.12729104,0.00013441,2]
[347141283,1735519837181,988.69,0.00025012,120]
[347141284,1735519837198,-383.87270896,0.00013441,2]
[347141286,1735519837207,-268.61531637,0.00013441,2]
[347141287,1735519837219,-529.09468363,0.00013441,2]
[347141288,1735519837228,-500.0,0.00013441,2]
[347141289,1735519837237,-2013.18,0.00013441,2]
[347141290,1735519837247,-500.0,0.00013441,2]
[347141291,1735519837256,-785.06,0.00013441,2]
[347141292,1735519837265,-546.4,0.00013441,2]
[347141293,1735519837274,-1007.13,0.00013441,2]
[347141294,1735519837284,-642.7,0.00013441,2]
[347141295,1735519837293,-1577.89,0.00013441,2]
[347141296,1735519837303,-500.0,0.00013441,2]
[347141297,1735519837312,-500.0,0.00013441,2]
[347141298,1735519837322,-180.71062638,0.00013441,2]
[347141299,1735519837377,496.09,0.00025012,120]
[347141300,1735519837427,549.07,0.00025012,120]
[347141301,1735519837508,988.69,0.00025012,120]
[347141302,1735519837559,757.76,0.00025012,120]
[347141303,1735519837631,1536.26,0.00025012,120]
[347141304,1735519837698,988.69,0.00025012,120]
[347141307,1735519837750,549.07,0.00025012,120]
[347141314,1735519837807,988.69,0.00025012,120]
[347141321,1735519837869,1536.26,0.00025012,120]
[347141328,1735519837928,757.76,0.00025012,120]
[347141335,1735519837987,1536.35856663,0.00025012,120]
[347141342,1735519838051,988.69,0.00025012,120]
[347141350,1735519838113,988.69,0.00025012,120]
[347141366,1735519838257,549.07,0.00025012,120]
[347141372,1735519838306,988.69,0.00025012,120]
[347141386,1735519838436,500.0,0.00025012,120]
[347141393,1735519838495,988.69,0.00025012,120]
[347141399,1735519838541,757.76,0.00025012,120]
[347141404,1735519838587,988.69,0.00025012,120]
[347141412,1735519838649,988.69,0.00025012,120]
[347141419,1735519838709,988.69,0.00025012,120]
[347141425,1735519838757,988.69,0.00025012,120]
[347141431,1735519838803,988.77,0.00025012,120]
[347141438,1735519838864,757.76,0.00025012,120]
[347141444,1735519838909,500.0,0.00025012,120]
[347141450,1735519838963,500.0,0.00025012,120]
[347141456,1735519839008,757.76,0.00025012,120]
[347141476,1735519839193,757.76,0.00025012,120]
[347141482,1735519839240,500.0,0.00025012,120]
[347141501,1735519839382,757.76,0.00025012,120]
[347141504,1735519839394,-2500.0,0.00012967,2]
[347141506,1735519839404,-174.11177238,0.00013067,2]
[347141508,1735519839413,-319.28937362,0.00013441,2]
[347141510,1735519839422,-500.0,0.00013441,2]
[347141512,1735519839431,-500.0,0.00013441,2]
[347141514,1735519839442,-8275.93,0.00013441,2]
[347141516,1735519839451,-500.0,0.00013441,2]
[347141518,1735519839461,-500.0,0.00013441,2]
[347141520,1735519839470,-500.0,0.00013441,2]
[347141522,1735519839479,-500.0,0.00013441,2]
[347141524,1735519839488,-500.0,0.00013441,2]
[347141525,1735519839497,-3395.35,0.00013441,2]
[347141527,1735519839506,-547.65,0.00013441,2]
[347141528,1735519839515,-577.81,0.00013441,2]
[347141529,1735519839524,-586.4,0.00013441,2]
[347141530,1735519839532,-500.0,0.00013441,2]
[347141531,1735519839542,-500.0,0.00013441,2]
[347141532,1735519839551,-757.57,0.00013441,2]
[347141533,1735519839560,-1181.96,0.00013441,2]
[347141534,1735519839569,-2234.06,0.00013441,2]
[347141535,1735519839578,-500.0,0.00013441,2]
[347141536,1735519839588,-749.71,0.00013441,2]
[347141537,1735519839597,-500.0,0.00013441,2]
[347141538,1735519839606,-500.0,0.00013441,2]
[347141539,1735519839615,-697.05,0.00013441,2]
[347141540,1735519839625,-500.0,0.00013441,2]
[347141541,1735519839634,-577.16,0.00013441,2]
[347141542,1735519839643,-1894.3,0.00013441,2]
[347141543,1735519839652,-847.91,0.00013441,2]
[347141544,1735519839660,-1563.62,0.00013441,2]
[347141545,1735519839669,-500.0,0.00013441,2]
[347141546,1735519839679,-743.22,0.00013441,2]
[347141547,1735519839689,-500.0,0.00013441,2]
[347141548,1735519839698,-560.83,0.00013441,2]
[347141549,1735519839708,-500.0,0.00013441,2]
[347141550,1735519839717,-563.97,0.00013441,2]
[347141551,1735519839726,-632.12,0.00013441,2]
[347141552,1735519839735,-3849.59,0.00013441,2]
[347141553,1735519839745,-500.0,0.00013441,2]
[347141555,1735519839754,-815.27,0.00013441,2]
[347141557,1735519839763,-500.0,0.00013441,2]
[347141559,1735519839772,-500.0,0.00013441,2]
[347141561,1735519839782,-500.0,0.00013441,2]
[347141562,1735519839791,-570.42,0.00013441,2]
[347141563,1735519839800,-504.25,0.00013441,2]
[347141565,1735519839809,-200.0,0.00013455,2]
[347141566,1735519839818,-150.0,0.00013466,2]
[347141568,1735519839827,-134502.72888627,0.000135,2]
[347141572,1735519839852,-746.00586944,0.000135,2]
[347141577,1735519839905,500.0,0.00025012,120]
[347141578,1735519839917,-994.55272991,0.000135,2]
[347141579,1735519839928,-17062.74298999,0.000135,2]
[347141580,1735519839937,-207.855806,0.000135,2]
[347141581,1735519839948,-151.0,0.000135,2]
[347141582,1735519839957,-151.0,0.000135,2]
[347141583,1735519839966,-151.0,0.000135,2]
[347141584,1735519839974,-151.0,0.000135,2]
[347141585,1735519839984,-151.0,0.000135,2]
[347141586,1735519839992,-151.0,0.000135,2]
[347141587,1735519840002,-199.519868,0.000135,2]
[347141588,1735519840011,-491.052408,0.000135,2]
[347141589,1735519840020,-151.0,0.000135,2]
[347141590,1735519840030,-151.0,0.000135,2]
[347141591,1735519840039,-151.0,0.000135,2]
[347141592,1735519840047,-151.0,0.000135,2]
[347141593,1735519840057,-151.0,0.000135,2]
[347141594,1735519840066,-308.573537,0.000135,2]
[347141595,1735519840076,-308.573537,0.000135,2]
[347141596,1735519840085,-251.077567,0.000135,2]
[347141597,1735519840094,-251.077567,0.000135,2]
[347141598,1735519840103,-151.0,0.000135,2]
[347141599,1735519840112,-151.0,0.000135,2]
[347141600,1735519840121,-151.0,0.000135,2]
[347141601,1735519840130,-151.0,0.000135,2]
[347141602,1735519840140,-151.0,0.000135,2]
[347141603,1735519840148,-150.0,0.00013518,2]
[347141604,1735519840158,-150.0,0.00013528,2]
[347141605,1735519840167,-346.05796302,0.00013539,2]
[347141606,1735519840175,-151.0,0.00013548,2]
[347141607,1735519840184,-292.116845,0.00013548,2]
[347141608,1735519840194,-292.116845,0.00013548,2]
[347141609,1735519840203,-151.0,0.00013548,2]
[347141610,1735519840212,-151.0,0.00013548,2]
[347141611,1735519840221,-151.0,0.00013548,2]
[347141612,1735519840231,-150.0,0.00013565,2]
[347141613,1735519840240,-437.4,0.00013608,2]
[347141614,1735519840249,-437.4,0.00013608,2]
[347141615,1735519840258,-500.0,0.00013614,2]
[347141616,1735519840267,-500.0,0.00013614,2]
[347141617,1735519840277,-182.07,0.00013614,2]
[347141618,1735519840286,-500.0,0.00013614,2]
[347141619,1735519840295,-500.0,0.00013614,2]
[347141620,1735519840304,-242.88,0.00013614,2]
[347141621,1735519840313,-500.0,0.00013614,2]
[347141622,1735519840322,-500.0,0.00013614,2]
[347141623,1735519840331,-500.0,0.00013614,2]
[347141624,1735519840340,-324.61624402,0.00013614,2]
[347141625,1735519840349,-500.0,0.00013614,2]
[347141626,1735519840358,-500.0,0.00013614,2]
[347141627,1735519840368,-500.0,0.00013614,2]
[347141628,1735519840378,-293.71,0.00013614,2]
[347141629,1735519840387,-1203.14,0.00013614,2]
[347141630,1735519840397,-500.0,0.00013614,2]
[347141631,1735519840406,-603.98,0.00013614,2]
[347141632,1735519840415,-500.0,0.00013614,2]
[347141633,1735519840424,-578.81,0.00013614,2]
[347141634,1735519840433,-770.54,0.00013616,2]
[347141635,1735519840443,-500.0,0.00013621,2]
[347141636,1735519840452,-150.0,0.00013627,2]
[347141637,1735519840461,-415.8,0.00013693,2]
[347141638,1735519840470,-591.75,0.00013695,2]
[347141639,1735519840479,-200.0,0.00013699,2]
[347141640,1735519840488,-2186.96,0.00013699,2]
[347141641,1735519840498,-151.0,0.00013699,2]
[347141642,1735519840507,-151.0,0.00013699,2]
[347141643,1735519840516,-479.430445,0.00013699,2]
[347141644,1735519840524,-151.0,0.00013715,2]
[347141645,1735519840534,-500.0,0.00013715,2]
[347141646,1735519840543,-500.0,0.00013715,2]
[347141647,1735519840552,-500.0,0.00013715,2]
[347141648,1735519840561,-151.0,0.00013715,2]
[347141649,1735519840570,-500.0,0.00013715,2]
[347141650,1735519840579,-500.0,0.00013715,2]
[347141651,1735519840589,-500.0,0.00013715,2]
[347141652,1735519840599,-151.0,0.00013715,2]
[347141653,1735519840608,-77.78062748,0.00013715,2]
[347141654,1735519840666,757.76,0.00025012,120]
[347141655,1735519840717,500.0,0.00025012,120]
[347141656,1735519840772,757.76,0.00025012,120]
[347141657,1735519841050,-422.21937252,0.00013715,2]
[347141658,1735519841059,-500.0,0.00013715,2]
[347141659,1735519841068,-500.0,0.00013715,2]
[347141660,1735519841078,-500.0,0.00013715,2]
[347141661,1735519841087,-500.0,0.00013715,2]
[347141662,1735519841097,-500.0,0.00013715,2]
[347141663,1735519841106,-500.91,0.00013715,2]
[347141664,1735519841115,-371.09,0.00013715,2]
[347141665,1735519841124,-606.1,0.00013715,2]
[347141666,1735519841134,-308.97114181,0.00013715,2]
[347141667,1735519841145,-191.02885819,0.00013715,2]
[347141668,1735519841154,-500.0,0.00013715,2]
[347141669,1735519841163,-42.5723495,0.00013715,2]
[347141670,1735519841174,-457.4276505,0.00013715,2]
[347141671,1735519841183,-500.0,0.00013715,2]
[347141672,1735519841194,-155.36,0.00013715,2]
[347141673,1735519841203,-500.0,0.00013715,2]
[347141674,1735519841212,-500.0,0.00013715,2]
[347141675,1735519841221,-500.0,0.00013715,2]
[347141676,1735519841229,-500.0,0.00013715,2]
[347141677,1735519841238,-585.1,0.00013715,2]
[347141678,1735519841247,-156.11234951,0.00013715,2]
[347141679,1735519841258,-343.88765049,0.00013715,2]
[347141680,1735519841267,-417.37,0.00013715,2]
[347141681,1735519841276,-500.0,0.00013715,2]
[347141682,1735519841285,-500.0,0.00013715,2]
[347141683,1735519841294,-500.0,0.00013715,2]
[347141684,1735519841303,-193.61603251,0.00013715,2]
[347141685,1735519841314,-306.38396749,0.00013715,2]
[347141686,1735519841323,-500.0,0.00013715,2]
[347141687,1735519841332,-38.65685852,0.00013715,2]
[347141688,1735519841343,-461.34314148,0.00013715,2]
[347141689,1735519841352,-604.46,0.00013715,2]
[347141690,1735519841361,-500.0,0.00013715,2]
[347141691,1735519841371,-500.0,0.00013715,2]
[347141692,1735519841380,-500.0,0.00013715,2]
[347141693,1735519841390,-500.0,0.00013715,2]
[347141694,1735519841400,-500.0,0.00013715,2]
[347141695,1735519841410,-621.85,0.00013715,2]
[347141696,1735519841419,-500.0,0.00013715,2]
[347141697,1735519841428,-583.42,0.00013715,2]
[347141698,1735519841437,-677.25,0.00013715,2]
[347141699,1735519841447,-500.0,0.00013715,2]
[347141700,1735519841456,-500.0,0.00013715,2]
[347141701,1735519841466,-500.0,0.00013715,2]
[347141702,1735519841475,-500.0,0.00013715,2]
[347141703,1735519841484,-500.0,0.00013715,2]
[347141704,1735519841493,-500.0,0.00013715,2]
[347141705,1735519841502,-500.0,0.00013715,2]
[347141706,1735519841511,-500.0,0.00013715,2]
[347141707,1735519841520,-500.0,0.00013715,2]
[347141708,1735519841529,-500.0,0.00013715,2]
[347141709,1735519841538,-522.45,0.00013715,2]
[347141710,1735519841547,-500.0,0.00013715,2]
[347141711,1735519841556,-500.0,0.00013715,2]
[347141712,1735519841565,-726.55,0.00013715,2]
[347141713,1735519841574,-537.49,0.00013715,2]
[347141714,1735519841583,-500.0,0.00013715,2]
[347141715,1735519841593,-500.0,0.00013715,2]
[347141716,1735519841603,-500.0,0.00013715,2]
[347141717,1735519841612,-500.0,0.00013715,2]
[347141718,1735519841621,-201.57,0.00013715,2]
[347141719,1735519841631,-587.22,0.00013715,2]
[347141720,1735519841640,-509.5,0.00013715,2]
[347141721,1735519841649,-690.65,0.00013715,2]
[347141722,1735519841659,-500.0,0.00013715,2]
[347141723,1735519841669,-534.3,0.00013715,2]
[347141724,1735519841678,-500.0,0.00013715,2]
[347141725,1735519841688,-668.95,0.00013715,2]
[347141726,1735519841698,-174.01,0.00013715,2]
[347141727,1735519841707,-727.33,0.00013715,2]
[347141728,1735519841717,-500.0,0.00013715,2]
[347141729,1735519841727,-500.0,0.00013715,2]
[347141730,1735519841736,-500.0,0.00013715,2]
[347141731,1735519841746,-522.05,0.00013715,2]
[347141732,1735519841755,-500.0,0.00013715,2]
[347141733,1735519841764,-500.0,0.00013715,2]
[347141734,1735519841774,-500.0,0.00013715,2]
[347141735,1735519841783,-500.0,0.00013715,2]
[347141736,1735519841792,-539.87,0.00013715,2]
[347141737,1735519841801,-333.89,0.00013715,2]
[347141738,1735519841810,-500.0,0.00013715,2]
[347141739,1735519841820,-778.83,0.00013715,2]
[347141740,1735519841830,-500.0,0.00013715,2]
[347141741,1735519841839,-500.0,0.00013715,2]
[347141742,1735519841848,-500.0,0.00013715,2]
[347141743,1735519841858,-748.67,0.00013715,2]
[347141744,1735519841867,-916.92,0.00013715,2]
[347141745,1735519841876,-600.7,0.00013715,2]
[347141746,1735519841885,-256.97,0.00013715,2]
[347141747,1735519841895,-500.0,0.00013715,2]
[347141748,1735519841904,-531.43,0.00013715,2]
[347141749,1735519841913,-500.0,0.00013715,2]
[347141750,1735519841923,-500.0,0.00013715,2]
[347141751,1735519841931,-500.0,0.00013715,2]
[347141752,1735519841942,-500.0,0.00013715,2]
[347141753,1735519841951,-500.0,0.00013715,2]
[347141754,1735519841960,-533.74121158,0.00013715,2]
[347141755,1735519841973,-192.90878842,0.00013715,2]
[347141756,1735519841982,-273.31821543,0.00013715,2]
[347141757,1735519841993,-226.68178457,0.00013715,2]
[347141758,1735519842002,-500.0,0.00013715,2]
[347141759,1735519842011,-477.1882148,0.00013715,2]
[347141760,1735519842022,-22.8117852,0.00013715,2]
[347141761,1735519842031,-334.81,0.00013715,2]
[347141762,1735519842040,-500.0,0.00013715,2]
[347141763,1735519842050,-500.0,0.00013715,2]
[347141764,1735519842059,-770.76,0.00013715,2]
[347141765,1735519842069,-500.0,0.00013715,2]
[347141766,1735519842079,-500.0,0.00013715,2]
[347141767,1735519842088,-475.86,0.00013715,2]
[347141768,1735519842097,-40.3582148,0.00013715,2]
[347141769,1735519842114,-459.6417852,0.00013715,2]
[347141770,1735519842123,-38.1082148,0.00013715,2]
[347141771,1735519842134,-282.52999028,0.00013715,2]
[347141772,1735519842146,-179.36179492,0.00013715,2]
[347141773,1735519842156,-500.0,0.00013715,2]
[347141774,1735519842165,-509.28,0.00013715,2]
[347141775,1735519842174,-500.0,0.00013715,2]
[347141776,1735519842183,-629.54,0.00013715,2]
[347141777,1735519842193,-500.0,0.00013715,2]
[347141778,1735519842202,-500.0,0.00013715,2]
[347141780,1735519842211,-668.05,0.00013715,2]
[347141781,1735519842220,-399.21227333,0.00013715,2]
[347141782,1735519842268,500.0,0.00025012,120]
[347141789,1735519842337,757.76,0.00025012,120]
[347141791,1735519842488,500.0,0.00025012,120]
[347141792,1735519842617,757.76,0.00025012,120]
[347141793,1735519842680,500.0,0.00025012,120]
[347141794,1735519842727,757.76,0.00025012,120]
[347141795,1735519842793,500.0,0.00025012,120]
[347141796,1735519842806,-479.430445,0.00013699,2]
[347141797,1735519842816,-100.78772667,0.00013715,2]
[347141798,1735519842825,-700.67,0.00013715,2]
[347141799,1735519842834,-500.0,0.00013715,2]
[347141800,1735519842843,-500.0,0.00013715,2]
[347141801,1735519842852,-500.0,0.00013715,2]
[347141802,1735519842861,-500.0,0.00013715,2]
[347141803,1735519842870,-553.53,0.00013715,2]
[347141804,1735519842880,-221.83112456,0.00013715,2]
[347141805,1735519842889,-586.4,0.00013715,2]
[347141806,1735519842898,-500.0,0.00013715,2]
[347141807,1735519842907,-683.48,0.00013715,2]
[347141808,1735519842917,-500.0,0.00013715,2]
[347141809,1735519842926,-500.0,0.00013715,2]
[347141810,1735519842935,-500.0,0.00013715,2]
[347141812,1735519842946,-500.0,0.00013715,2]
[347141814,1735519842956,-500.0,0.00013715,2]
[347141816,1735519842964,-703.12,0.00013715,2]
[347141818,1735519842974,-500.0,0.00013715,2]
[347141820,1735519842983,-252.85070377,0.00013715,2]
[347141822,1735519842994,-247.14929623,0.00013715,2]
[347141824,1735519843003,-375.16818635,0.00013715,2]
[347141826,1735519843015,-124.83181365,0.00013715,2]
[347141828,1735519843024,-647.58,0.00013715,2]
[347141830,1735519843034,-227.58818635,0.00013715,2]
[347141832,1735519843046,-306.06,0.00013715,2]
[347141834,1735519843057,-7.90181365,0.00013715,2]
[347141836,1735519843067,-714.96,0.00013715,2]
[347141838,1735519843077,-574.19,0.00013715,2]
[347141840,1735519843086,-574.68,0.00013715,2]
[347141842,1735519843096,-717.6,0.00013715,2]
[347141844,1735519843105,-500.0,0.00013715,2]
[347141846,1735519843115,-500.0,0.00013715,2]
[347141848,1735519843125,-797.71,0.00013715,2]
[347141850,1735519843134,-500.0,0.00013715,2]
[347141851,1735519843143,-500.0,0.00013715,2]
[347141852,1735519843152,-785.06,0.00013715,2]
[347141853,1735519843161,-546.4,0.00013715,2]
[347141854,1735519843171,-642.7,0.00013715,2]
[347141855,1735519843180,-530.53,0.00013715,2]
[347141856,1735519843189,-500.0,0.00013715,2]
[347141857,1735519843202,-284.59296171,0.00013715,2]
[347141858,1735519843213,-215.40703829,0.00013715,2]
[347141859,1735519843223,-500.0,0.00013715,2]
[347141860,1735519843232,-500.0,0.00013715,2]
[347141861,1735519843241,-2442.33357879,0.00013715,2]
[347141862,1735519843259,-5833.59642121,0.00013715,2]
[347141863,1735519843268,-500.0,0.00013715,2]
[347141864,1735519843277,-500.0,0.00013715,2]
[347141865,1735519843286,-500.0,0.00013715,2]
[347141866,1735519843296,-500.0,0.00013715,2]
[347141867,1735519843305,-500.0,0.00013715,2]
[347141868,1735519843314,-3395.35,0.00013715,2]
[347141869,1735519843323,-547.65,0.00013715,2]
[347141870,1735519843332,-577.81,0.00013715,2]
[347141871,1735519843342,-586.4,0.00013715,2]
[347141872,1735519843351,-500.0,0.00013715,2]
[347141873,1735519843360,-500.0,0.00013715,2]
[347141874,1735519843369,-757.57,0.00013715,2]
[347141875,1735519843380,-1181.96,0.00013715,2]
[347141876,1735519843389,-2234.06,0.00013715,2]
[347141877,1735519843398,-500.0,0.00013715,2]
[347141878,1735519843408,-749.71,0.00013715,2]
[347141879,1735519843417,-500.0,0.00013715,2]
[347141880,1735519843426,-500.0,0.00013715,2]
[347141881,1735519843435,-697.05,0.00013715,2]
[347141882,1735519843447,-500.0,0.00013715,2]
[347141883,1735519843456,-577.16,0.00013715,2]
[347141884,1735519843465,-1894.3,0.00013715,2]
[347141885,1735519843475,-847.91,0.00013715,2]
[347141886,1735519843484,-1563.62,0.00013715,2]
[347141887,1735519843493,-500.0,0.00013715,2]
[347141888,1735519843502,-743.22,0.00013715,2]
[347141889,1735519843511,-500.0,0.00013715,2]
[347141890,1735519843520,-560.83,0.00013715,2]
[347141891,1735519843530,-500.0,0.00013715,2]
[347141892,1735519843540,-563.97,0.00013715,2]
[347141893,1735519843552,-632.12,0.00013715,2]
[347141894,1735519843563,-3849.59,0.00013715,2]
[347141895,1735519843573,-500.0,0.00013715,2]
[347141896,1735519843582,-815.27,0.00013715,2]
[347141897,1735519843591,-500.0,0.00013715,2]
[347141898,1735519843601,-500.0,0.00013715,2]
[347141899,1735519843611,-500.0,0.00013715,2]
[347141900,1735519843621,-570.42,0.00013715,2]
[347141901,1735519843630,-504.25,0.00013715,2]
[347141902,1735519843639,-151.0,0.00013715,2]
[347141903,1735519843649,-151.0,0.00013715,2]
[347141904,1735519843658,-150.0,0.00013726,2]
[347141905,1735519843667,-150.0,0.00013729,2]
[347141906,1735519843677,-150.0,0.00013776,2]
[347141907,1735519843686,-500.0,0.00013794,2]
[347141908,1735519843697,-190.178641,0.00013794,2]
[347141909,1735519843706,-151.0,0.00013794,2]
[347141910,1735519843715,-602.8,0.00013794,2]
[347141911,1735519843725,-898.07,0.00013794,2]
[347141912,1735519843734,-632.42,0.00013794,2]
[347141913,1735519843743,-519.75,0.00013794,2]
[347141914,1735519843752,-644.79,0.00013794,2]
[347141915,1735519843761,-526.75,0.00013794,2]
[347141916,1735519843770,-1264.63,0.00013794,2]
[347141917,1735519843780,-756.29,0.00013794,2]
[347141918,1735519843789,-1116.01,0.00013794,2]
[347141919,1735519843798,-552.38,0.00013794,2]
[347141920,1735519843808,-1198.35,0.00013794,2]
[347141921,1735519843817,-500.0,0.00013794,2]
[347141922,1735519843827,-750.86,0.00013794,2]
[347141923,1735519843836,-743.69,0.00013794,2]
[347141924,1735519843845,-500.0,0.00013794,2]
[347141925,1735519843855,-500.0,0.00013794,2]
[347141926,1735519843864,-190.14,0.00013794,2]
[347141927,1735519843874,-500.0,0.00013794,2]
[347141928,1735519843883,-626.25,0.00013794,2]
[347141929,1735519843892,-308.573537,0.00013794,2]
[347141930,1735519843902,-308.573537,0.00013794,2]
[347141931,1735519843911,-251.077567,0.00013794,2]
[347141932,1735519843919,-251.077567,0.00013794,2]
[347141933,1735519843928,-151.0,0.00013794,2]
[347141934,1735519843937,-151.0,0.00013794,2]
[347141935,1735519843949,-151.0,0.00013794,2]
[347141936,1735519843958,-800.0,0.00013795,2]
[347141937,1735519843967,-2200.0,0.00013795,2]
[347141938,1735519843976,-151.0,0.00013816,2]